[Event "*** SCC Grand Prix: Titled Tuesday Blitz"]
[Site "Chess.com"]
[Date "2020.10.06"]
[Round "6"]
[White "rugbyclub"]
[Black "Snegokhod"]
[Result "0-1"]
[WhiteElo "2179"]
[BlackElo "2395"]
[TimeControl "180+1"]
[EndTime "11:08:35 PDT"]
[Termination "Snegokhod won by resignation"]

1. c4 {[%clk 0:02:52.2]} 1... Nf6 {[%clk 0:02:59.3]} 2. Nc3 {[%clk 0:02:52.6]}
2... d5 {[%clk 0:02:59.4]} 3. cxd5 {[%clk 0:02:51.9]} 3... Nxd5 {[%clk
0:03:00.3]} 4. Nf3 {[%clk 0:02:51.9]} 4... g6 {[%clk 0:03:00.2]} 5. h4 {[%clk
0:02:52]} 5... Bg7 {[%clk 0:02:57.2]} 6. e4 {[%clk 0:02:51.8]} 6... Nxc3 {[%clk
0:02:56.5]} 7. dxc3 {[%clk 0:02:52.4]} 7... Qxd1+ {[%clk 0:02:55.8]} 8. Kxd1
{[%clk 0:02:53]} 8... Bg4 {[%clk 0:02:54.8]} 9. Be2 {[%clk 0:02:46.3]} 9... Nc6
{[%clk 0:02:54.4]} 10. Nd2 {[%clk 0:02:46]} 10... Bd7 {[%clk 0:02:47.9]} 11. Kc2
{[%clk 0:02:44.5]} 11... h5 {[%clk 0:02:45.1]} 12. b4 {[%clk 0:02:33.1]} 12...
a5 {[%clk 0:02:43.9]} 13. b5 {[%clk 0:02:32.5]} 13... Ne5 {[%clk 0:02:44]} 14.
a4 {[%clk 0:02:30]} 14... c6 {[%clk 0:02:40.6]} 15. Nc4 {[%clk 0:02:24.8]} 15...
Nxc4 {[%clk 0:02:29.4]} 16. Bxc4 {[%clk 0:02:22.3]} 16... cxb5 {[%clk
0:02:29.5]} 17. Bxb5 {[%clk 0:02:16.3]} 17... Bxb5 {[%clk 0:02:27]} 18. axb5
{[%clk 0:02:15.4]} 18... Kd7 {[%clk 0:02:18.6]} 19. Be3 {[%clk 0:01:51.6]} 19...
Rhc8 {[%clk 0:02:15.5]} 20. Ra3 {[%clk 0:01:51.3]} 20... Rc4 {[%clk 0:02:11.2]}
21. Kd3 {[%clk 0:01:46.7]} 21... Rac8 {[%clk 0:02:08]} 22. Rxa5 {[%clk
0:01:38.9]} 22... Rxc3+ {[%clk 0:02:05.4]} 23. Ke2 {[%clk 0:01:38.7]} 23... Rc2+
{[%clk 0:01:41.9]} 24. Kf3 {[%clk 0:01:35.6]} 24... Rb2 {[%clk 0:01:40.6]} 25.
Rd1+ {[%clk 0:01:21.4]} 25... Ke6 {[%clk 0:01:39.8]} 26. b6 {[%clk 0:01:21]}
26... Rc3 {[%clk 0:01:34]} 27. g3 {[%clk 0:00:29.2]} 27... Bh6 {[%clk
0:01:21.8]} 28. Rdd5 {[%clk 0:00:17.3]} 28... Bxe3 {[%clk 0:01:16.9]} 29. fxe3
{[%clk 0:00:16.7]} 29... Rcc2 {[%clk 0:01:12.8]} 30. e5 {[%clk 0:00:14.6]} 30...
Rf2+ {[%clk 0:01:03.7]} 31. Ke4 {[%clk 0:00:13.8]} 31... Rxb6 {[%clk 0:01:01.2]}
32. Rdb5 {[%clk 0:00:11.9]} 32... Rxb5 {[%clk 0:00:52.6]} 33. Rxb5 {[%clk
0:00:12.4]} 33... Rf5 {[%clk 0:00:49.2]} 34. Kd4 {[%clk 0:00:09.4]} 34... Rf3
{[%clk 0:00:47.1]} 35. Rxb7 {[%clk 0:00:08.2]} 35... Rxg3 {[%clk 0:00:45.3]} 36.
Rb6+ {[%clk 0:00:07.5]} 36... Kd7 {[%clk 0:00:43.5]} 37. Rb7+ {[%clk 0:00:07.9]}
37... Kd8 {[%clk 0:00:43.8]} 38. Rb8+ {[%clk 0:00:07.2]} 38... Kc7 {[%clk
0:00:44.1]} 39. Rf8 {[%clk 0:00:07.8]} 39... Rf3 {[%clk 0:00:32.2]} 40. e4
{[%clk 0:00:07.9]} 40... Kd7 {[%clk 0:00:30.2]} 41. Kd5 {[%clk 0:00:05.9]} 41...
Rf1 {[%clk 0:00:27.8]} 42. Kd4 {[%clk 0:00:03.1]} 42... Ke6 {[%clk 0:00:27.3]}
43. Ra8 {[%clk 0:00:03.5]} 43... Rd1+ {[%clk 0:00:27.1]} 44. Ke3 {[%clk
0:00:04.1]} 44... Kxe5 {[%clk 0:00:27.5]} 45. Ra6 {[%clk 0:00:04.7]} 45... Rh1
{[%clk 0:00:26]} 46. Ra5+ {[%clk 0:00:03.8]} 46... Kf6 {[%clk 0:00:25.4]} 47.
Ra6+ {[%clk 0:00:04.5]} 47... Kg7 {[%clk 0:00:25.2]} 48. Ra7 {[%clk 0:00:03.7]}
48... e6 {[%clk 0:00:23.1]} 0-1

[Event "*** SCC Grand Prix: Titled Tuesday Blitz"]
[Site "Chess.com"]
[Date "2020.10.06"]
[Round "6"]
[White "esrosenberg"]
[Black "MikeSailer"]
[Result "0-1"]
[WhiteElo "2287"]
[BlackElo "2094"]
[TimeControl "180+1"]
[EndTime "11:08:35 PDT"]
[Termination "MikeSailer won on time"]

1. Nf3 {[%clk 0:03:00.9]} 1... d5 {[%clk 0:02:59.2]} 2. c4 {[%clk 0:03:00.9]}
2... c6 {[%clk 0:02:59]} 3. d4 {[%clk 0:03:00.9]} 3... Nf6 {[%clk 0:02:58.7]} 4.
Nc3 {[%clk 0:03:00.9]} 4... a6 {[%clk 0:02:59.3]} 5. Ne5 {[%clk 0:03:00.4]} 5...
Bf5 {[%clk 0:02:48]} 6. Qb3 {[%clk 0:02:51.6]} 6... Ra7 {[%clk 0:02:19.9]} 7.
Bg5 {[%clk 0:02:20.6]} 7... e6 {[%clk 0:02:19.6]} 8. e3 {[%clk 0:02:19.4]} 8...
Be7 {[%clk 0:02:19.3]} 9. Be2 {[%clk 0:01:54.5]} 9... O-O {[%clk 0:02:18.5]} 10.
O-O {[%clk 0:01:54.5]} 10... Nbd7 {[%clk 0:02:19.1]} 11. Rad1 {[%clk 0:01:42.3]}
11... Nxe5 {[%clk 0:02:12.6]} 12. dxe5 {[%clk 0:01:42.2]} 12... Nd7 {[%clk
0:02:08.5]} 13. Bxe7 {[%clk 0:01:32.1]} 13... Qxe7 {[%clk 0:02:08.2]} 14. cxd5
{[%clk 0:01:13.4]} 14... cxd5 {[%clk 0:01:54.5]} 15. f4 {[%clk 0:01:13.6]} 15...
b5 {[%clk 0:01:47.2]} 16. Bf3 {[%clk 0:01:07.3]} 16... Rb7 {[%clk 0:01:16.5]}
17. Ne2 {[%clk 0:01:03.3]} 17... Nc5 {[%clk 0:01:11.2]} 18. Qb4 {[%clk
0:00:57.7]} 18... Nd3 {[%clk 0:01:00.5]} 19. Qxe7 {[%clk 0:00:57.6]} 19... Rxe7
{[%clk 0:01:00.5]} 20. Nd4 {[%clk 0:00:49.5]} 20... Be4 {[%clk 0:00:51.6]} 21.
Bxe4 {[%clk 0:00:45.9]} 21... dxe4 {[%clk 0:00:51.8]} 22. Rd2 {[%clk 0:00:46.3]}
22... Rc8 {[%clk 0:00:48]} 23. g4 {[%clk 0:00:41.3]} 23... Rec7 {[%clk
0:00:33.4]} 24. Ne2 {[%clk 0:00:32.8]} 24... Rc2 {[%clk 0:00:29.6]} 25. Rfd1
{[%clk 0:00:32.9]} 25... f5 {[%clk 0:00:24]} 26. exf6 {[%clk 0:00:27.4]} 26...
gxf6 {[%clk 0:00:24.4]} 27. Nc3 {[%clk 0:00:20.9]} 27... f5 {[%clk 0:00:22]} 28.
Rxc2 {[%clk 0:00:20.9]} 28... b4 {[%clk 0:00:18.9]} 29. Rg2 {[%clk 0:00:14.6]}
29... bxc3 {[%clk 0:00:17.5]} 30. gxf5+ {[%clk 0:00:15.2]} 30... Kf7 {[%clk
0:00:18.3]} 31. fxe6+ {[%clk 0:00:15.2]} 31... Kxe6 {[%clk 0:00:19]} 32. bxc3
{[%clk 0:00:15.8]} 32... Rxc3 {[%clk 0:00:19.1]} 33. Rb1 {[%clk 0:00:14]} 33...
Kd5 {[%clk 0:00:15.7]} 34. h4 {[%clk 0:00:12.8]} 34... Kc4 {[%clk 0:00:14.6]}
35. Rg7 {[%clk 0:00:11.6]} 35... Nc5 {[%clk 0:00:11.6]} 36. Rxh7 {[%clk
0:00:10.3]} 36... Rxe3 {[%clk 0:00:12]} 37. Rc1+ {[%clk 0:00:10.2]} 37... Kd4
{[%clk 0:00:11.8]} 38. Rd1+ {[%clk 0:00:06.8]} 38... Nd3 {[%clk 0:00:11.7]} 39.
Rd7+ {[%clk 0:00:06.2]} 39... Kc3 {[%clk 0:00:11.8]} 40. f5 {[%clk 0:00:05]}
40... Rf3 {[%clk 0:00:08.9]} 41. Rf7 {[%clk 0:00:03]} 41... e3 {[%clk
0:00:08.3]} 0-1

[Event "*** SCC Grand Prix: Titled Tuesday Blitz"]
[Site "Chess.com"]
[Date "2020.10.06"]
[Round "6"]
[White "PauloCesarCosta_sad"]
[Black "Rital44"]
[Result "0-1"]
[WhiteElo "2286"]
[BlackElo "2432"]
[TimeControl "180+1"]
[EndTime "11:08:38 PDT"]
[Termination "Rital44 won on time"]

1. Nf3 {[%clk 0:03:00.9]} 1... Nf6 {[%clk 0:02:57]} 2. c4 {[%clk 0:02:59.5]}
2... g6 {[%clk 0:02:56.3]} 3. g3 {[%clk 0:02:59.4]} 3... Bh6 {[%clk 0:02:54.3]}
4. Bg2 {[%clk 0:02:59.9]} 4... O-O {[%clk 0:02:53.6]} 5. O-O {[%clk 0:02:59.8]}
5... d6 {[%clk 0:02:53.8]} 6. Nc3 {[%clk 0:02:57.6]} 6... e5 {[%clk 0:02:52.4]}
7. d4 {[%clk 0:02:57.3]} 7... Bxc1 {[%clk 0:02:51.9]} 8. Rxc1 {[%clk 0:02:57.8]}
8... exd4 {[%clk 0:02:51.3]} 9. Qxd4 {[%clk 0:02:56.7]} 9... Nc6 {[%clk
0:02:51.2]} 10. Qh4 {[%clk 0:02:55.3]} 10... Be6 {[%clk 0:02:45.9]} 11. b3
{[%clk 0:02:46.9]} 11... Nd7 {[%clk 0:02:37.7]} 12. Qxd8 {[%clk 0:02:39.1]}
12... Rfxd8 {[%clk 0:02:33.1]} 13. Ng5 {[%clk 0:02:40]} 13... a5 {[%clk
0:02:28.7]} 14. Nb5 {[%clk 0:02:31.5]} 14... Rdc8 {[%clk 0:02:26.2]} 15. Nxe6
{[%clk 0:02:20]} 15... fxe6 {[%clk 0:02:23.3]} 16. Bxc6 {[%clk 0:02:19.7]} 16...
bxc6 {[%clk 0:02:23.7]} 17. Nd4 {[%clk 0:02:20.1]} 17... e5 {[%clk 0:02:14.5]}
18. Nxc6 {[%clk 0:02:16.2]} 18... Kf7 {[%clk 0:02:14.1]} 19. b4 {[%clk
0:01:54.1]} 19... axb4 {[%clk 0:02:12.9]} 20. Nxb4 {[%clk 0:01:53.9]} 20... Nc5
{[%clk 0:02:12.9]} 21. Rc2 {[%clk 0:01:47.5]} 21... Ra4 {[%clk 0:02:09.3]} 22.
Nd5 {[%clk 0:01:44.3]} 22... Ne6 {[%clk 0:02:04]} 23. e3 {[%clk 0:01:41.1]}
23... Rca8 {[%clk 0:02:02.6]} 24. Ra1 {[%clk 0:01:35.4]} 24... R8a6 {[%clk
0:02:00.1]} 25. Kf1 {[%clk 0:01:26.4]} 25... c6 {[%clk 0:01:58]} 26. Nc3 {[%clk
0:01:15.9]} 26... Rxc4 {[%clk 0:01:57.8]} 27. Ke1 {[%clk 0:01:10]} 27... Ra3
{[%clk 0:01:52.9]} 28. Rac1 {[%clk 0:01:08.3]} 28... Nc5 {[%clk 0:01:47.3]} 29.
Kd2 {[%clk 0:01:03.9]} 29... Rcxc3 {[%clk 0:01:19.2]} 30. Rxc3 {[%clk
0:01:02.4]} 30... Rxa2+ {[%clk 0:01:11.7]} 31. R3c2 {[%clk 0:00:57.2]} 31...
Nb3+ {[%clk 0:01:11.3]} 32. Kd1 {[%clk 0:00:51.3]} 32... Nxc1 {[%clk 0:01:10.1]}
33. Kxc1 {[%clk 0:00:45.4]} 33... Rxc2+ {[%clk 0:01:08.9]} 34. Kxc2 {[%clk
0:00:46.3]} 34... e4 {[%clk 0:01:09.4]} 35. Kc3 {[%clk 0:00:45.9]} 35... d5
{[%clk 0:01:07]} 36. Kd4 {[%clk 0:00:45.8]} 36... Ke6 {[%clk 0:01:07]} 37. Kc5
{[%clk 0:00:46.5]} 37... Kd7 {[%clk 0:01:07.3]} 38. h3 {[%clk 0:00:45.6]} 38...
h5 {[%clk 0:01:06.6]} 39. h4 {[%clk 0:00:45.5]} 39... Kc7 {[%clk 0:01:06.2]} 40.
Kd4 {[%clk 0:00:41.2]} 40... Kd6 {[%clk 0:01:06.2]} 41. Kc3 {[%clk 0:00:39.1]}
41... c5 {[%clk 0:01:06.1]} 42. Kb3 {[%clk 0:00:38.7]} 42... Ke5 {[%clk
0:01:04.4]} 43. Kc3 {[%clk 0:00:38.4]} 43... d4+ {[%clk 0:01:04.4]} 44. exd4+
{[%clk 0:00:36.9]} 44... cxd4+ {[%clk 0:01:05.3]} 45. Kd2 {[%clk 0:00:37.3]}
45... Kf5 {[%clk 0:01:03.8]} 46. Ke2 {[%clk 0:00:36.6]} 46... Kg4 {[%clk
0:01:04]} 47. Kd2 {[%clk 0:00:28.2]} 47... Kf3 {[%clk 0:01:02.3]} 48. Ke1 {[%clk
0:00:14.5]} 48... d3 {[%clk 0:01:00.9]} 49. Kd1 {[%clk 0:00:09.6]} 49... Kxf2
{[%clk 0:01:00.7]} 50. Kd2 {[%clk 0:00:10.5]} 50... Kxg3 {[%clk 0:00:59.5]} 51.
Ke1 {[%clk 0:00:11.4]} 51... Kxh4 {[%clk 0:00:59.4]} 52. Kd2 {[%clk 0:00:12.3]}
52... Kg4 {[%clk 0:01:00.1]} 53. Ke3 {[%clk 0:00:12.6]} 53... Kf5 {[%clk
0:01:01]} 54. Kd2 {[%clk 0:00:12.4]} 54... Kf4 {[%clk 0:01:01.9]} 55. Ke1 {[%clk
0:00:13.3]} 55... e3 {[%clk 0:01:02]} 56. Kd1 {[%clk 0:00:11]} 56... h4 {[%clk
0:01:02.9]} 57. Ke1 {[%clk 0:00:09.9]} 57... g5 {[%clk 0:01:03.8]} 58. Kd1
{[%clk 0:00:04.9]} 58... h3 {[%clk 0:01:04]} 59. Kc1 {[%clk 0:00:02.5]} 59... g4
{[%clk 0:01:04.4]} 60. Kb2 {[%clk 0:00:02.6]} 60... g3 {[%clk 0:01:05.3]} 61.
Kb3 {[%clk 0:00:03.5]} 61... Ke4 {[%clk 0:01:06.2]} 62. Kb4 {[%clk 0:00:04.4]}
62... h2 {[%clk 0:01:06]} 63. Kb5 {[%clk 0:00:05.3]} 63... g2 {[%clk 0:01:06.9]}
64. Kb6 {[%clk 0:00:06.2]} 64... e2 {[%clk 0:01:07.5]} 65. Kc7 {[%clk 0:00:07]}
65... d2 {[%clk 0:01:08.4]} 66. Kc8 {[%clk 0:00:03.5]} 66... d1=Q {[%clk
0:01:08.2]} 67. Kc7 {[%clk 0:00:04.4]} 67... e1=Q {[%clk 0:01:08.3]} 68. Kc8
{[%clk 0:00:04.2]} 68... Qc3+ {[%clk 0:01:08.8]} 69. Kb7 {[%clk 0:00:02.8]}
69... Qb1+ {[%clk 0:01:09.7]} 0-1

[Event "*** SCC Grand Prix: Titled Tuesday Blitz"]
[Site "Chess.com"]
[Date "2020.10.06"]
[Round "6"]
[White "vladgoncharov"]
[Black "Sueetin"]
[Result "1-0"]
[WhiteElo "2437"]
[BlackElo "2298"]
[TimeControl "180+1"]
[EndTime "11:08:40 PDT"]
[Termination "vladgoncharov won by checkmate"]

1. d4 {[%clk 0:03:00.9]} 1... Nf6 {[%clk 0:02:59.5]} 2. c4 {[%clk 0:03:00.9]}
2... e6 {[%clk 0:02:59.6]} 3. Nf3 {[%clk 0:03:00.1]} 3... d5 {[%clk 0:02:59.2]}
4. Nc3 {[%clk 0:02:59.4]} 4... Bb4 {[%clk 0:02:58.4]} 5. Bg5 {[%clk 0:02:58.4]}
5... Nbd7 {[%clk 0:02:58]} 6. e3 {[%clk 0:02:57.9]} 6... c5 {[%clk 0:02:54]} 7.
Nd2 {[%clk 0:02:55.7]} 7... cxd4 {[%clk 0:02:51.6]} 8. exd4 {[%clk 0:02:55.4]}
8... dxc4 {[%clk 0:02:46.7]} 9. Nxc4 {[%clk 0:02:45]} 9... b5 {[%clk 0:02:21.3]}
10. Ne3 {[%clk 0:02:39.8]} 10... a6 {[%clk 0:02:14.4]} 11. Bd3 {[%clk
0:02:37.6]} 11... Bb7 {[%clk 0:02:13.2]} 12. O-O {[%clk 0:02:36.5]} 12... Be7
{[%clk 0:01:45.9]} 13. a4 {[%clk 0:02:10.5]} 13... b4 {[%clk 0:01:42.9]} 14. Ne2
{[%clk 0:02:10.3]} 14... O-O {[%clk 0:01:38.9]} 15. a5 {[%clk 0:02:08.7]} 15...
Nd5 {[%clk 0:01:32.7]} 16. Bxe7 {[%clk 0:02:07.2]} 16... Qxe7 {[%clk 0:01:32.6]}
17. Rc1 {[%clk 0:01:55.1]} 17... Nxe3 {[%clk 0:01:12.4]} 18. fxe3 {[%clk
0:01:54.7]} 18... Qg5 {[%clk 0:01:12.6]} 19. Nf4 {[%clk 0:01:54.6]} 19... e5
{[%clk 0:01:12.2]} 20. Rc7 {[%clk 0:01:46.8]} 20... exf4 {[%clk 0:00:53.4]} 21.
Rxb7 {[%clk 0:01:46.1]} 21... Nf6 {[%clk 0:00:43.6]} 22. Rxf4 {[%clk 0:01:40.3]}
22... Nd5 {[%clk 0:00:27.5]} 23. Rf3 {[%clk 0:01:30.7]} 23... Rab8 {[%clk
0:00:20.5]} 24. Rxb8 {[%clk 0:01:28]} 24... Rxb8 {[%clk 0:00:20.1]} 25. e4
{[%clk 0:01:09.8]} 25... Nf4 {[%clk 0:00:20]} 26. Bf1 {[%clk 0:01:09.7]} 26...
Rd8 {[%clk 0:00:18.6]} 27. d5 {[%clk 0:01:08.6]} 27... f5 {[%clk 0:00:17.3]} 28.
g3 {[%clk 0:00:37.4]} 28... Ng6 {[%clk 0:00:10.3]} 29. Rxf5 {[%clk 0:00:36.5]}
29... Qe3+ {[%clk 0:00:10.1]} 30. Rf2 {[%clk 0:00:33.1]} 30... Qxe4 {[%clk
0:00:09.5]} 31. Bg2 {[%clk 0:00:32.9]} 31... Qe3 {[%clk 0:00:08.8]} 32. Qd2
{[%clk 0:00:28.9]} 32... Qc5 {[%clk 0:00:07.8]} 33. Qe2 {[%clk 0:00:23.3]} 33...
Rf8 {[%clk 0:00:03.9]} 34. Kf1 {[%clk 0:00:12.6]} 34... Rxf2+ {[%clk 0:00:02.9]}
35. Qxf2 {[%clk 0:00:12.8]} 35... Qc1+ {[%clk 0:00:03.6]} 36. Qe1 {[%clk
0:00:12.8]} 36... Qc4+ {[%clk 0:00:03.6]} 37. Kg1 {[%clk 0:00:12.5]} 37... Qd4+
{[%clk 0:00:02.7]} 38. Kh1 {[%clk 0:00:12.4]} 38... Ne5 {[%clk 0:00:03.5]} 39.
h3 {[%clk 0:00:11.7]} 39... h6 {[%clk 0:00:02.2]} 40. Qe4 {[%clk 0:00:11.4]}
40... Qd1+ {[%clk 0:00:01.9]} 41. Kh2 {[%clk 0:00:11.1]} 41... Nd3 {[%clk
0:00:02.5]} 42. Qe6+ {[%clk 0:00:09.5]} 42... Kh7 {[%clk 0:00:02.9]} 43. Qe7
{[%clk 0:00:08.9]} 43... Kg6 {[%clk 0:00:03]} 44. Be4+ {[%clk 0:00:09.8]} 44...
Kh5 {[%clk 0:00:02.1]} 45. Qh4# {[%clk 0:00:08.9]} 1-0

[Event "*** SCC Grand Prix: Titled Tuesday Blitz"]
[Site "Chess.com"]
[Date "2020.10.06"]
[Round "6"]
[White "GlennTipton"]
[Black "ChessAurochs"]
[Result "0-1"]
[WhiteElo "2440"]
[BlackElo "2559"]
[TimeControl "180+1"]
[EndTime "11:08:42 PDT"]
[Termination "ChessAurochs won by resignation"]

1. e4 {[%clk 0:02:48.6]} 1... e6 {[%clk 0:03:00.1]} 2. b3 {[%clk 0:02:48.4]}
2... d5 {[%clk 0:03:01]} 3. Bb2 {[%clk 0:02:48.8]} 3... dxe4 {[%clk 0:03:01.1]}
4. Nc3 {[%clk 0:02:49.1]} 4... Nf6 {[%clk 0:03:01.6]} 5. Qe2 {[%clk 0:02:49.6]}
5... Nc6 {[%clk 0:03:00.6]} 6. Nxe4 {[%clk 0:02:49.2]} 6... Be7 {[%clk
0:03:01.3]} 7. Nf3 {[%clk 0:02:46.4]} 7... O-O {[%clk 0:03:01.1]} 8. O-O-O
{[%clk 0:02:41.3]} 8... a5 {[%clk 0:02:59.7]} 9. a3 {[%clk 0:02:39.8]} 9... b6
{[%clk 0:02:56.9]} 10. Nxf6+ {[%clk 0:02:27.8]} 10... Bxf6 {[%clk 0:02:56.8]}
11. Bxf6 {[%clk 0:02:26.8]} 11... Qxf6 {[%clk 0:02:57.7]} 12. d4 {[%clk
0:02:27.4]} 12... Bb7 {[%clk 0:02:52.8]} 13. Qe3 {[%clk 0:02:23]} 13... Rad8
{[%clk 0:02:52]} 14. Bd3 {[%clk 0:02:17.6]} 14... g6 {[%clk 0:02:48.5]} 15. Be4
{[%clk 0:02:14.3]} 15... Rd6 {[%clk 0:02:46.8]} 16. h4 {[%clk 0:02:04.7]} 16...
Rfd8 {[%clk 0:02:46.2]} 17. c3 {[%clk 0:02:02.7]} 17... Ba6 {[%clk 0:02:27.7]}
18. h5 {[%clk 0:01:54.9]} 18... Ne7 {[%clk 0:02:14.1]} 19. hxg6 {[%clk
0:01:53.2]} 19... hxg6 {[%clk 0:02:15]} 20. Rh4 {[%clk 0:01:22.3]} 20... c5
{[%clk 0:01:32.9]} 21. Rdh1 {[%clk 0:01:17.6]} 21... Kf8 {[%clk 0:01:25.3]} 22.
Rf4 {[%clk 0:00:32.9]} 22... Nf5 {[%clk 0:01:25]} 23. Bxf5 {[%clk 0:00:30.5]}
23... exf5 {[%clk 0:01:25.9]} 24. Rfh4 {[%clk 0:00:26.7]} 24... Re6 {[%clk
0:01:21.3]} 25. Qf4 {[%clk 0:00:18.5]} 25... Rdd6 {[%clk 0:00:27.1]} 26. dxc5
{[%clk 0:00:17.7]} 26... bxc5 {[%clk 0:00:26.7]} 27. Rh8+ {[%clk 0:00:17.3]}
27... Ke7 {[%clk 0:00:26.6]} 28. Qg5 {[%clk 0:00:18.2]} 28... Be2 {[%clk
0:00:23.3]} 29. Qxf6+ {[%clk 0:00:18.2]} 29... Kxf6 {[%clk 0:00:24.2]} 30. Re1
{[%clk 0:00:16.1]} 30... Rd3 {[%clk 0:00:20.7]} 31. Kc2 {[%clk 0:00:16.5]} 31...
Rdd6 {[%clk 0:00:16.5]} 32. Rb8 {[%clk 0:00:15.9]} 32... Bd3+ {[%clk 0:00:13.9]}
33. Kd2 {[%clk 0:00:15.8]} 33... Be4+ {[%clk 0:00:14.1]} 34. Kc1 {[%clk
0:00:15.3]} 34... Rd3 {[%clk 0:00:14.1]} 35. Nd2 {[%clk 0:00:15.2]} 35... Rxc3+
{[%clk 0:00:13.9]} 36. Kd1 {[%clk 0:00:16.1]} 36... Bc2+ {[%clk 0:00:13.6]} 37.
Kc1 {[%clk 0:00:16.3]} 37... Rxe1+ {[%clk 0:00:14.5]} 38. Kb2 {[%clk 0:00:17]}
38... Rd3 {[%clk 0:00:14]} 39. Kxc2 {[%clk 0:00:17.4]} 39... Rd6 {[%clk
0:00:14.9]} 40. Nc4 {[%clk 0:00:18.1]} 40... Re2+ {[%clk 0:00:15.1]} 41. Kc3
{[%clk 0:00:18.1]} 41... Rde6 {[%clk 0:00:15.6]} 42. Ne3 {[%clk 0:00:18.4]}
42... Rxf2 {[%clk 0:00:15.4]} 43. Nd5+ {[%clk 0:00:18.5]} 43... Ke5 {[%clk
0:00:15.9]} 44. Kc4 {[%clk 0:00:19]} 44... Rc2+ {[%clk 0:00:15.5]} 45. Nc3
{[%clk 0:00:18.9]} 45... Rxg2 {[%clk 0:00:14.5]} 46. Rc8 {[%clk 0:00:18.9]}
46... Rg4+ {[%clk 0:00:14.1]} 47. Kb5 {[%clk 0:00:19.1]} 47... Kf6 {[%clk
0:00:15]} 48. Rxc5 {[%clk 0:00:19.8]} 48... Re5 {[%clk 0:00:15.2]} 49. Nd5+
{[%clk 0:00:20.7]} 49... Ke6 {[%clk 0:00:15.5]} 50. Nc3 {[%clk 0:00:21]} 50...
Rxc5+ {[%clk 0:00:15.5]} 51. Kxc5 {[%clk 0:00:21.9]} 51... f4 {[%clk 0:00:16.4]}
52. Nb5 {[%clk 0:00:22.8]} 52... f3 {[%clk 0:00:16.7]} 53. Nd4+ {[%clk
0:00:23.1]} 53... Rxd4 {[%clk 0:00:16.9]} 54. Kxd4 {[%clk 0:00:24]} 54... f2
{[%clk 0:00:17.8]} 55. Ke3 {[%clk 0:00:24.3]} 55... f1=Q {[%clk 0:00:18.7]} 0-1

[Event "*** SCC Grand Prix: Titled Tuesday Blitz"]
[Site "Chess.com"]
[Date "2020.10.06"]
[Round "6"]
[White "Andreikka"]
[Black "severomorskij"]
[Result "0-1"]
[WhiteElo "2888"]
[BlackElo "2788"]
[TimeControl "180+1"]
[EndTime "11:08:44 PDT"]
[Termination "severomorskij won by checkmate"]

1. c4 {[%clk 0:03:00.9]} 1... e5 {[%clk 0:02:59.2]} 2. Nc3 {[%clk 0:03:00.3]}
2... Bb4 {[%clk 0:02:58.7]} 3. Nd5 {[%clk 0:03:00.4]} 3... Bc5 {[%clk
0:02:57.7]} 4. e3 {[%clk 0:03:00.4]} 4... Nf6 {[%clk 0:02:55.7]} 5. b4 {[%clk
0:02:59.9]} 5... Nxd5 {[%clk 0:02:46.4]} 6. bxc5 {[%clk 0:02:59.8]} 6... Nf6
{[%clk 0:02:46.5]} 7. Nf3 {[%clk 0:02:58.1]} 7... Qe7 {[%clk 0:02:42.6]} 8. Bb2
{[%clk 0:02:55.4]} 8... e4 {[%clk 0:02:38.2]} 9. Nd4 {[%clk 0:02:55]} 9... Qxc5
{[%clk 0:02:31.7]} 10. f3 {[%clk 0:02:55.5]} 10... O-O {[%clk 0:02:26.4]} 11.
fxe4 {[%clk 0:02:54.9]} 11... Nxe4 {[%clk 0:02:16.8]} 12. Bd3 {[%clk 0:02:55.2]}
12... Nd6 {[%clk 0:01:46.4]} 13. O-O {[%clk 0:02:52.1]} 13... Na6 {[%clk
0:01:38.3]} 14. Nf5 {[%clk 0:01:47.7]} 14... Nxf5 {[%clk 0:01:34.9]} 15. Rxf5
{[%clk 0:01:48.6]} 15... Qb6 {[%clk 0:01:24.4]} 16. Bd4 {[%clk 0:01:34.4]} 16...
c5 {[%clk 0:01:23.6]} 17. Bc3 {[%clk 0:01:12.3]} 17... d5 {[%clk 0:01:08.9]} 18.
Rxd5 {[%clk 0:01:01.9]} 18... Nb4 {[%clk 0:01:08.7]} 19. Qh5 {[%clk 0:00:20.3]}
19... Nxd3 {[%clk 0:00:53.1]} 20. Rxd3 {[%clk 0:00:11.4]} 20... Qg6 {[%clk
0:00:41]} 21. Qxg6 {[%clk 0:00:10.3]} 21... hxg6 {[%clk 0:00:41.3]} 22. Rd6
{[%clk 0:00:08]} 22... Be6 {[%clk 0:00:38]} 23. d4 {[%clk 0:00:06.2]} 23... cxd4
{[%clk 0:00:35.2]} 24. Bxd4 {[%clk 0:00:06.3]} 24... Bxc4 {[%clk 0:00:35.2]} 25.
a4 {[%clk 0:00:06.8]} 25... b6 {[%clk 0:00:33.3]} 26. a5 {[%clk 0:00:06.6]}
26... bxa5 {[%clk 0:00:29.3]} 27. Rxa5 {[%clk 0:00:07]} 27... a6 {[%clk
0:00:29.1]} 28. h4 {[%clk 0:00:07.9]} 28... Rfd8 {[%clk 0:00:26.9]} 29. Rc6
{[%clk 0:00:08.2]} 29... Rdc8 {[%clk 0:00:26]} 30. Rd6 {[%clk 0:00:08.2]} 30...
Bb5 {[%clk 0:00:25]} 31. Kh2 {[%clk 0:00:08.7]} 31... Rc2 {[%clk 0:00:22]} 32.
Kh3 {[%clk 0:00:09.2]} 32... Rac8 {[%clk 0:00:20.9]} 33. Ra3 {[%clk 0:00:09.2]}
33... Re2 {[%clk 0:00:19.1]} 34. g4 {[%clk 0:00:07.1]} 34... Kh7 {[%clk
0:00:13.5]} 35. h5 {[%clk 0:00:07]} 35... gxh5 {[%clk 0:00:13]} 36. gxh5 {[%clk
0:00:07.9]} 36... Rc1 {[%clk 0:00:12.8]} 37. Kg3 {[%clk 0:00:05.5]} 37... Rf1
{[%clk 0:00:10.1]} 38. Ra5 {[%clk 0:00:02.5]} 38... Ref2 {[%clk 0:00:08.9]} 39.
h6 {[%clk 0:00:02.3]} 39... gxh6 {[%clk 0:00:05.5]} 40. Rd8 {[%clk 0:00:03]}
40... Rf3+ {[%clk 0:00:04.3]} 41. Kg2 {[%clk 0:00:02.9]} 41... R3f2+ {[%clk
0:00:04.5]} 42. Kg3 {[%clk 0:00:03.3]} 42... Rf3+ {[%clk 0:00:04.7]} 43. Kg2
{[%clk 0:00:03.8]} 43... Bc6 {[%clk 0:00:05]} 44. Rxa6 {[%clk 0:00:03.7]} 44...
R3f2+ {[%clk 0:00:03.1]} 45. Kg3 {[%clk 0:00:03.8]} 45... Rg2+ {[%clk
0:00:03.4]} 46. Kh4 {[%clk 0:00:04.4]} 46... Rh1# {[%clk 0:00:03.8]} 0-1